bitfinex/quotes_SOLUSD_20240621
["timestamp","ask_amount","ask_price","bid_price","bid_amount"]
[1718982467770,6.0033,133.26,133.21,6.0052]
[1718982468091,15.0046,133.3,133.23,6.0045]
[1718982468285,6.0026,133.28,133.23,6.0045]
[1718982468481,6.0028,133.27,133.22,6.0048]
[1718982469589,6.1726,133.28,133.23,6.0045]
[1718982469776,0.17,133.28,133.25,6.0036]
[1718982470084,0.17,133.28,133.2,15.0147]
[1718982470298,0.17,133.28,133.23,6.0043]
[1718982470299,6.0024,133.28,133.23,6.0043]
[1718982470486,6.1721,133.29,133.24,6.0041]
[1718982470797,6.003,133.27,133.22,6.0048]
[1718982471085,6.0026,133.28,133.23,6.0044]
[1718982472671,6.0026,133.28,133.24,6.0041]
[1718982473166,6.3421,133.29,133.24,6.0041]
[1718982473567,0.34,133.29,133.25,6.0037]
[1718982473872,45.17,133.29,133.25,6.0037]
[1718982474073,45.17,133.29,133.26,6.0032]
[1718982474279,0.17,133.29,133.21,15.0137]
[1718982474501,0.17,133.29,133.25,6.0036]
[1718982475389,6.172,133.29,133.25,6.0036]
[1718982475592,6.0024,133.28,133.21,15.0137]
[1718982475902,6.0025,133.28,133.23,6.0043]
[1718982477191,6.0025,133.28,133.24,6.0041]
[1718982477622,6.0025,133.28,133.23,6.0046]
[1718982478136,6.0025,133.28,133.24,6.0041]
[1718982478620,6.0025,133.28,133.23,6.0046]
[1718982480242,6.1721,133.29,133.24,6.0041]
[1718982480413,6.0024,133.28,133.24,6.0041]
[1718982480611,6.0032,133.27,133.22,6.0047]
[1718982480814,6.003,133.27,133.22,6.0047]
[1718982481018,6.003,133.27,133.2,21.3259]
[1718982481019,6.3537,133.31,133.2,21.3259]
[1718982481215,682.7818,133.35,133.28,6.0021]
[1718982481216,6.0004,133.33,133.28,6.0021]
[1718982481427,5.9999,133.34,133.28,6.0019]
[1718982481636,5.9999,133.34,133.26,15.0075]
[1718982481637,40.883,133.35,133.3,6.0012]
[1718982482343,5.9998,133.34,133.29,6.0017]
[1718982483130,5.9998,133.34,133.3,6.0014]
[1718982483338,41.053,133.35,133.3,6.0014]
[1718982483549,12.443,133.35,133.3,6.0014]
[1718982483931,6.0003,133.33,133.25,15.0093]
[1718982484247,6.0003,133.33,133.22,52.5247]
[1718982484248,5.9998,133.34,133.3,6.0014]
[1718982484748,6.4436,133.35,133.21,100.0]
[1718982484749,6.002,133.29,133.24,6.0038]
[1718982484950,6.002,133.29,133.2,21.3259]
[1718982484951,6.0021,133.29,133.2,21.3259]
[1718982485443,15.5693,133.32,133.22,6.0049]
[1718982485650,45.34,133.31,133.23,6.0046]
[1718982485956,45.34,133.31,133.24,6.0041]
[1718982485957,15.0042,133.3,133.24,6.0041]
[1718982486139,51.1721,133.29,133.24,6.0041]
[1718982486337,51.0025,133.28,133.21,15.013]
[1718982486543,6.0025,133.28,133.23,6.0044]
[1718982486746,6.0029,133.27,133.21,15.013]
[1718982486923,6.1726,133.28,133.23,6.0046]
[1718982487763,6.1726,133.28,133.24,6.0041]
[1718982487931,0.17,133.28,133.2,21.3259]
[1718982488133,6.0035,133.26,133.21,6.0053]
[1718982488955,6.173,133.27,133.22,6.005]
[1718982489159,45.17,133.26,133.23,6.0046]
[1718982489337,0.17,133.26,133.22,6.0049]
[1718982489652,12.515,133.28,133.23,6.0044]
[1718982489836,61.19776479,133.32,133.2,15.2767]
[1718982490025,6.0017,133.3,133.25,6.0035]
[1718982490536,6.0021,133.29,133.22,15.0119]
[1718982490735,21.8792,133.32,133.26,6.0032]
[1718982491062,21.8792,133.32,133.22,15.0119]
[1718982491063,21.6533,133.36,133.23,6.3375]
[1718982491258,5.9996,133.35,133.3,6.0014]
[1718982491646,5.9996,133.35,133.27,15.006]
[1718982491844,5.9996,133.35,133.3,6.0012]
[1718982492351,5.9998,133.34,133.29,6.0018]
[1718982492559,5.9994,133.35,133.27,15.006]
[1718982492854,27.6522,133.36,133.31,6.0007]
[1718982493064,6.4392,133.36,133.32,6.0005]
[1718982493272,5.9985,133.37,133.27,15.6356]
[1718982493461,5.9988,133.36,133.32,6.0004]
[1718982493759,5.9985,133.37,133.32,6.0004]
[1718982493962,276.5599,133.39,133.29,15.0039]
[1718982494173,5.9984,133.37,133.32,6.0003]
[1718982494464,276.5599,133.39,133.31,15.0026]
[1718982494465,6.4661,133.39,133.31,15.0026]
[1718982494648,6.4661,133.39,133.29,30.009]
[1718982494649,6.0764,133.42,133.39,5.9973]
[1718982494849,6.0764,133.42,133.38,5.9977]
[1718982495043,5.9956,133.43,133.38,5.9977]
[1718982495663,5.9961,133.42,133.37,5.9981]
[1718982495863,5.9958,133.43,133.38,5.9978]
[1718982496242,16.2623,133.44,133.33,15.0002]
[1718982496452,5.9969,133.41,133.36,5.9984]
[1718982496970,6.1661,133.42,133.37,5.9981]
[1718982497148,50.9965,133.41,133.36,5.9986]
[1718982497352,5.9977,133.39,133.3,21.1316]
[1718982497561,6.3371,133.4,133.35,5.9991]
[1718982497753,50.9974,133.39,133.34,5.9995]
[1718982498055,45.0,133.39,133.35,5.9992]
[1718982498455,45.0,133.39,133.31,15.0015]
[1718982498640,0.17,133.38,133.31,15.0015]
[1718982498840,6.1681,133.38,133.33,6.0]
[1718982500267,51.131,133.37,133.28,15.0052]
[1718982500457,51.301,133.37,133.33,6.0]
[1718982500639,0.17,133.36,133.33,6.0]
[1718982501270,0.17,133.36,133.28,15.0057]
[1718982501449,5.9995,133.35,133.3,6.0012]
[1718982501649,45.17,133.34,133.3,6.0011]
[1718982501859,45.17,133.34,133.31,6.0008]
[1718982502063,6.1699,133.34,133.29,6.0017]
[1718982502466,0.17,133.34,133.29,6.0017]
[1718982502673,0.17,133.34,133.3,6.0013]
[1718982502844,0.17,133.34,133.31,6.0009]
[1718982503171,0.17,133.34,133.3,6.0012]
[1718982503362,6.0001,133.33,133.29,6.0018]
[1718982503560,0.34,133.34,133.29,6.0018]
[1718982503769,6.3398,133.34,133.29,6.0018]
[1718982503964,6.3398,133.34,133.27,15.0062]
[1718982503965,6.3398,133.34,133.3,6.0014]
[1718982504151,6.3399,133.34,133.29,6.0017]
[1718982504353,6.0011,133.31,133.24,15.0095]
[1718982504562,6.0017,133.3,133.25,6.0034]
[1718982504751,6.0017,133.3,133.22,15.0127]
[1718982504752,45.0,133.29,133.22,15.0127]
[1718982504960,0.17,133.28,133.25,6.0035]
[1718982505152,45.17,133.29,133.25,6.0035]
[1718982505568,51.172,133.29,133.25,6.0035]
[1718982505769,51.172,133.29,133.24,6.0039]
[1718982506069,6.5514,133.29,133.26,6.003]
[1718982508286,6.5514,133.29,133.27,6.0027]
[1718982508475,6.5514,133.29,133.24,6.004]
[1718982508657,6.5514,133.29,133.19,52.7351]
[1718982508966,6.3333,133.32,133.29,6.0016]
[1718982509478,12.3326,133.35,133.22,52.5236]
[1718982509683,12.3326,133.35,133.3,6.0012]
[1718982510181,5.9981,133.38,133.26,22.3746]
[1718982510361,6.4306,133.39,133.34,5.9993]
[1718982510362,12.4283,133.39,133.34,5.9993]
[1718982510562,12.4283,133.39,133.27,42.84]
[1718982510563,6.4306,133.39,133.27,42.84]
[1718982510771,6.4306,133.39,133.32,15.0014]
[1718982511079,5.9968,133.41,133.32,15.0014]
[1718982511252,5.997,133.4,133.33,14.9993]
[1718982511457,5.997,133.4,133.31,0.17]
[1718982511458,5.9975,133.39,133.34,5.9996]
[1718982511852,5.9979,133.38,133.34,5.9996]
[1718982512061,5.997,133.4,133.35,5.9991]
[1718982512379,5.9974,133.39,133.34,5.9995]
[1718982512554,5.9982,133.38,133.33,6.0]
[1718982512964,21.4218,133.42,133.34,5.9995]
[1718982512965,5.9976,133.39,133.34,5.9995]
[1718982513378,6.4306,133.42,133.28,30.0112]
[1718982513564,5.997,133.4,133.35,5.999]
[1718982514047,6.4306,133.42,133.35,5.9988]
[1718982514251,5.9967,133.41,133.36,5.9986]
[1718982514679,0.17,133.4,133.36,5.9986]
[1718982514876,6.4306,133.42,133.29,0.34]
[1718982514877,12.4268,133.42,133.37,5.9981]
[1718982515084,6.4306,133.42,133.38,5.9978]
[1718982515685,12.4267,133.42,133.37,5.9982]
[1718982515861,6.4306,133.42,133.38,5.9977]
[1718982516966,6.4306,133.42,133.39,5.9974]
[1718982517490,33.15,133.49,133.3,100.0]
[1718982517491,6.4551,133.46,133.33,44.3662]
[1718982517795,6.4551,133.46,133.43,5.9954]
[1718982517985,6.4551,133.46,133.43,5.9955]
[1718982518284,6.4551,133.46,133.42,5.9959]
[1718982518460,12.4495,133.46,133.41,5.9963]
[1718982518661,5.9954,133.44,133.39,5.9971]
[1718982518866,12.4495,133.46,133.41,5.9963]
[1718982519186,6.4551,133.46,133.43,5.9956]
[1718982519419,12.4494,133.46,133.39,14.9925]
[1718982519591,6.4551,133.46,133.37,14.9957]
[1718982519892,12.4496,133.46,133.38,14.9937]
[1718982520077,12.4496,133.46,133.41,5.9963]
[1718982520267,45.0,133.45,133.41,5.9963]
[1718982520467,45.0,133.45,133.4,5.9967]
[1718982520665,6.6251,133.46,133.38,14.9937]
[1718982520666,6.4551,133.46,133.38,14.9937]
[1718982520914,6.4551,133.46,133.4,14.9924]
[1718982521074,6.4551,133.46,133.36,30.163]
[1718982521386,261.4067,133.5,133.45,5.9945]
[1718982521587,6.3067,133.5,133.45,5.9945]
[1718982521768,6.3067,133.5,133.46,5.9942]
[1718982522093,5.9929,133.49,133.44,5.995]
[1718982522398,6.3067,133.5,133.42,14.9901]
[1718982522687,6.3067,133.5,133.4,21.4881]
[1718982522992,5.9938,133.48,133.4,21.4881]
[1718982523396,5.9938,133.48,133.43,5.9953]
[1718982523585,5.9931,133.49,133.44,5.9951]
[1718982523783,5.9936,133.48,133.43,5.9956]
[1718982523981,0.17,133.49,133.44,5.9949]
[1718982524301,6.3067,133.5,133.42,14.9901]
[1718982524497,6.3067,133.5,133.46,5.9939]
[1718982525091,12.2992,133.5,133.45,5.9945]
[1718982525292,6.3067,133.5,133.46,5.9942]
[1718982525595,12.5121,133.53,133.44,14.9875]
[1718982525804,6.5206,133.53,133.46,14.9847]
[1718982525974,415.65,133.58,133.52,5.9915]
[1718982525975,6.181,133.56,133.52,5.9915]
[1718982526703,22.0071,133.58,133.53,5.9911]
[1718982526883,5.9894,133.57,133.52,5.9912]
[1718982527215,5.9898,133.56,133.52,5.9912]
[1718982527406,5.9898,133.56,133.51,5.9918]
[1718982529382,5.99,133.56,133.51,5.9919]
[1718982530383,5.9903,133.55,133.51,5.9919]
[1718982530582,5.9903,133.55,133.5,5.9923]
[1718982530789,5.9903,133.55,133.51,5.992]
[1718982531507,50.991,133.54,133.49,5.9929]
[1718982531694,45.0,133.54,133.5,5.9924]
[1718982531881,5.9914,133.53,133.49,5.9929]
[1718982532198,50.9908,133.54,133.49,5.9929]
[1718982532594,50.9908,133.54,133.45,6.6024]
[1718982532595,0.17,133.55,133.51,5.992]
[1718982532789,5.9907,133.54,133.5,5.9923]
[1718982533578,5.9908,133.54,133.49,5.9926]
[1718982533813,51.3305,133.55,133.51,5.992]
[1718982534104,45.34,133.55,133.51,5.9919]
[1718982534428,45.17,133.55,133.52,5.9916]
[1718982534600,45.0,133.55,133.49,14.9814]
[1718982534788,16.0182,133.58,133.53,5.9908]
[1718982535581,5.9896,133.57,133.52,5.9914]
[1718982536300,5.9906,133.55,133.47,14.9844]
[1718982536489,5.9906,133.55,133.5,5.9924]
[1718982536691,6.33,133.56,133.51,5.9918]
[1718982537001,6.16,133.56,133.52,5.9915]
[1718982537203,0.17,133.56,133.52,5.9915]
[1718982537394,0.17,133.56,133.51,5.992]
[1718982537594,30.9912,133.58,133.51,5.992]
[1718982537595,5.9904,133.55,133.51,5.992]
[1718982537911,5.9904,133.55,133.5,5.9922]
[1718982538094,5.9908,133.54,133.5,5.9922]
[1718982538282,6.1608,133.54,133.5,5.9922]
[1718982538610,0.17,133.54,133.51,5.992]
[1718982538782,45.17,133.54,133.5,5.9923]
[1718982538983,5.9902,133.55,133.51,5.9918]
[1718982539207,5.9905,133.55,133.48,14.9825]
[1718982539502,5.9907,133.54,133.5,5.9923]
[1718982539710,5.9913,133.53,133.48,5.9931]
[1718982540005,5.9907,133.54,133.49,5.9929]
[1718982540213,14.9748,133.56,133.48,5.9932]
[1718982540391,6.2217,133.52,133.44,14.9878]
[1718982540590,6.2217,133.52,133.43,15.1075]
[1718982540899,6.2217,133.52,133.5,5.9924]
[1718982541793,12.2134,133.52,133.47,5.9937]
[1718982541990,6.2217,133.52,133.43,30.0962]
[1718982542205,6.2217,133.52,133.45,5.9943]
[1718982542206,5.9928,133.5,133.45,5.9943]
[1718982542412,67.2377,133.51,133.46,5.9939]
[1718982542711,67.2377,133.51,133.43,14.9887]
[1718982543193,61.2455,133.51,133.41,14.9911]
[1718982543391,5.9938,133.47,133.39,37.4931]
[1718982543698,76.2267,133.51,133.43,5.9954]
[1718982543699,5.9936,133.48,133.43,5.9954]
[1718982543902,5.9938,133.47,133.42,5.9959]
[1718982544095,5.9943,133.46,133.42,5.9959]
[1718982544284,5.9948,133.45,133.4,5.9968]
[1718982544490,5.9947,133.45,133.41,5.9964]
[1718982544688,5.9947,133.45,133.39,5.9971]
[1718982544689,5.9955,133.44,133.39,5.9971]
[1718982545010,12.7168,133.45,133.4,5.9969]
[1718982545196,45.34,133.44,133.38,5.9978]
[1718982545399,45.34,133.44,133.35,22.8165]
[1718982545400,60.7541,133.44,133.32,21.6122]
[1718982545709,5.9971,133.4,133.35,5.9991]
[1718982545919,14.99,133.43,133.36,5.9987]
[1718982546207,5.997,133.4,133.35,5.999]
[1718982546404,45.34,133.42,133.32,6.6115]
[1718982546405,51.3361,133.42,133.32,6.6115]
[1718982547091,5.9966,133.41,133.34,14.9983]
[1718982547402,5.9966,133.41,133.36,5.9986]
[1718982547604,51.3363,133.42,133.37,5.9982]
[1718982548604,45.17,133.42,133.38,5.9976]
[1718982548786,5.9957,133.43,133.39,5.9973]
[1718982549111,6.552,133.45,133.42,5.9959]
[1718982549886,6.552,133.45,133.4,5.9966]
[1718982550184,6.552,133.45,133.38,14.9937]
[1718982550391,12.5469,133.45,133.4,5.9966]
[1718982550591,12.5469,133.45,133.41,5.9964]
[1718982550792,6.552,133.45,133.41,5.9964]
[1718982551307,12.5468,133.45,133.4,5.9967]
[1718982551626,5.9958,133.43,133.38,5.9975]
[1718982551914,5.9963,133.42,133.37,5.9982]
[1718982552209,6.1665,133.41,133.36,5.9986]
[1718982552414,45.17,133.41,133.37,5.9981]
[1718982552913,51.1667,133.41,133.36,5.9986]
[1718982553211,45.17,133.41,133.37,5.9982]
[1718982553420,16.0061,133.43,133.32,6.6115]
[1718982553713,16.0061,133.43,133.39,5.9971]
[1718982553919,5.9961,133.42,133.38,5.9978]
[1718982554295,5.9961,133.42,133.37,5.9981]
[1718982554503,50.9965,133.41,133.36,5.9986]
[1718982555430,45.0,133.41,133.37,5.9982]
[1718982555600,45.0,133.41,133.38,5.9978]
[1718982555800,6.1662,133.42,133.38,5.9978]
[1718982556000,0.17,133.42,133.38,5.9978]
[1718982556212,45.34,133.42,133.38,5.9978]
[1718982556403,45.17,133.42,133.39,5.9973]
[1718982556616,16.0061,133.43,133.4,5.9966]
[1718982556809,16.0061,133.43,133.33,29.9995]
[1718982557010,16.0061,133.43,133.36,5.9985]
[1718982557198,5.9971,133.4,133.35,5.999]
[1718982557618,5.9967,133.41,133.36,5.9987]
[1718982557807,6.1662,133.42,133.33,20.0]
[1718982558117,51.1666,133.41,133.36,5.9985]
[1718982558316,5.997,133.4,133.36,5.9985]
[1718982558517,51.1667,133.41,133.36,5.9985]
[1718982559118,5.997,133.4,133.36,5.9985]
[1718982559616,45.0,133.41,133.38,5.9976]
[1718982559825,51.3365,133.42,133.37,5.9982]
[1718982560019,5.9966,133.41,133.37,5.9982]
[1718982560211,51.3371,133.4,133.35,5.999]
[1718982560398,0.17,133.42,133.32,36.6133]
[1718982560593,16.0061,133.43,133.33,20.17]
[1718982560796,16.0061,133.43,133.34,0.17]
[1718982561000,6.552,133.45,133.35,29.9952]
[1718982561201,15.9289,133.47,133.37,16.5059]
[1718982561406,5.9945,133.46,133.41,5.9961]
[1718982561624,5.9945,133.46,133.42,5.996]
[1718982561823,21.9229,133.47,133.42,5.996]
[1718982562028,15.9289,133.47,133.38,14.9937]
[1718982562321,45.0,133.46,133.39,14.9927]
[1718982562511,45.0,133.46,133.43,5.9955]
[1718982562907,15.9289,133.47,133.42,5.9959]
[1718982563114,15.9289,133.47,133.41,5.9963]
[1718982563115,5.9945,133.46,133.41,5.9963]
[1718982564000,5.9945,133.46,133.38,14.9943]
[1718982564206,21.9229,133.47,133.42,5.996]
[1718982564403,21.9229,133.47,133.43,5.9956]
[1718982564404,45.0,133.46,133.43,5.9956]
[1718982565212,45.0,133.46,133.42,5.9958]
[1718982565403,45.0,133.46,133.39,14.9926]
[1718982566026,45.0,133.46,133.41,5.9964]
[1718982566229,5.9954,133.44,133.39,5.997]
[1718982566528,6.3349,133.45,133.4,5.9967]
[1718982566729,6.3349,133.45,133.41,5.9965]
[1718982567105,6.3349,133.45,133.4,5.9967]
[1718982567997,5.9952,133.44,133.4,5.9967]
[1718982568224,6.3349,133.45,133.4,5.9967]
[1718982568718,0.17,133.45,133.38,14.9937]
[1718982568910,45.0,133.46,133.38,14.9937]
[1718982569112,50.9943,133.46,133.42,5.9958]
[1718982569310,50.9943,133.46,133.41,5.9963]
[1718982569617,0.17,133.45,133.41,5.9963]
[1718982570420,6.1648,133.45,133.41,5.9963]
[1718982570605,6.1648,133.45,133.4,5.9967]
[1718982570806,15.9289,133.47,133.44,5.9951]
[1718982571108,15.9289,133.47,133.43,5.9954]
[1718982571307,21.9227,133.47,133.42,5.9958]
[1718982571498,5.9943,133.46,133.41,5.9963]
[1718982571701,5.9943,133.46,133.4,14.9924]
[1718982572109,22.093,133.47,133.42,5.9959]
[1718982572429,21.923,133.47,133.42,5.9959]
[1718982572639,21.923,133.47,133.4,14.9924]
[1718982572640,51.1644,133.46,133.41,5.9962]
[1718982573325,0.17,133.46,133.42,5.9959]
[1718982573501,6.1643,133.46,133.42,5.9959]
[1718982574028,0.17,133.46,133.42,5.9959]
[1718982574431,6.1643,133.46,133.41,5.9963]
[1718982575028,6.1643,133.46,133.42,5.996]
[1718982575335,0.17,133.46,133.43,5.9955]
[1718982575529,0.17,133.46,133.37,16.5059]
[1718982575828,0.17,133.46,133.43,5.9955]
[1718982576231,5.9952,133.44,133.37,16.5059]
[1718982576402,45.34,133.46,133.38,5.9977]
[1718982576403,15.3266,133.46,133.38,5.9977]
[1718982576608,15.3266,133.46,133.33,35.6416]
[1718982576609,28.36,133.42,133.36,5.9984]
[1718982576813,50.9968,133.41,133.36,5.9984]
[1718982577120,50.9967,133.41,133.36,5.9984]
[1718982577322,50.9967,133.41,133.37,5.9981]
[1718982577530,5.997,133.4,133.33,15.0001]
[1718982577715,45.17,133.39,133.33,15.0001]
[1718982577916,45.17,133.39,133.31,15.0022]
[1718982578112,12.6455,133.37,133.29,31.2747]
[1718982578340,12.6455,133.37,133.32,6.0003]
[1718982578516,6.6472,133.37,133.3,15.0026]
[1718982578830,6.6472,133.37,133.33,5.9998]
[1718982579029,6.6472,133.37,133.27,30.012]
[1718982579220,51.3389,133.36,133.31,6.0008]
[1718982579542,5.9993,133.35,133.3,6.0012]
[1718982579718,45.34,133.36,133.31,6.0009]
[1718982579924,5.9992,133.35,133.31,6.0009]
[1718982580121,5.9992,133.35,133.3,6.0013]
[1718982580308,45.34,133.36,133.28,15.0059]
[1718982580507,51.3388,133.36,133.31,6.0008]
[1718982580718,5.9993,133.35,133.3,6.0012]
[1718982581238,51.1699,133.34,133.29,6.0018]
[1718982581437,51.1699,133.34,133.24,6.073]
[1718982581438,15.4792,133.33,133.22,16.2772]
[1718982581611,6.0008,133.32,133.27,6.0028]
[1718982581817,45.34,133.31,133.27,6.0028]
[1718982582019,45.34,133.31,133.23,15.0107]
[1718982582219,0.34,133.31,133.27,6.0025]
[1718982582442,6.0016,133.3,133.25,6.0036]
[1718982582655,0.34,133.29,133.25,6.0036]
[1718982582812,45.34,133.29,133.26,6.0032]
[1718982583011,45.34,133.29,133.25,6.0035]
[1718982583237,45.34,133.29,133.26,6.0032]
[1718982583624,45.34,133.29,133.25,6.0035]
[1718982584035,45.34,133.29,133.23,15.0107]
[1718982584036,51.3419,133.29,133.24,6.0039]
[1718982584335,51.3419,133.29,133.23,15.0107]
[1718982584336,45.34,133.29,133.25,6.0037]
[1718982584725,6.4528,133.3,133.28,6.0022]
[1718982585124,6.4528,133.3,133.26,6.003]
[1718982585314,45.17,133.29,133.24,6.0037]
[1718982585520,45.17,133.29,133.19,30.0319]
[1718982585820,45.17,133.29,133.26,6.0032]
[1718982586245,6.4528,133.3,133.27,6.0027]
[1718982586431,0.17,133.31,133.29,6.0019]
[1718982586633,27.6076,133.33,133.28,6.0021]
[1718982586826,0.17,133.32,133.28,6.0021]
[1718982587325,6.1706,133.32,133.27,6.0026]
[1718982587527,6.1706,133.32,133.25,15.0083]
[1718982587528,0.17,133.32,133.28,6.0023]
[1718982587735,51.3406,133.32,133.28,6.0023]
[1718982588242,51.3406,133.32,133.27,6.0026]
[1718982588636,6.0011,133.31,133.26,6.0031]
[1718982588841,6.0022,133.29,133.24,6.0039]
[1718982589050,45.0,133.28,133.25,6.0037]
[1718982589346,51.1715,133.3,133.25,6.0037]
[1718982589521,51.1715,133.3,133.26,6.0029]
[1718982589522,45.0,133.3,133.26,6.0029]
[1718982589721,0.17,133.29,133.25,6.0036]
[1718982590047,6.3421,133.29,133.24,6.0041]
[1718982590208,45.0,133.28,133.24,6.0041]
[1718982590415,45.0,133.28,133.23,6.0044]
[1718982590644,0.17,133.27,133.24,6.0041]
[1718982590851,45.0,133.28,133.21,15.0129]
[1718982591014,45.0,133.28,133.24,6.0039]
[1718982591221,0.17,133.27,133.23,6.0044]
[1718982591730,0.17,133.27,133.21,15.0129]
[1718982591931,0.17,133.27,133.24,6.0041]
[1718982592150,45.0,133.28,133.24,6.0041]
[1718982592318,0.17,133.27,133.24,6.0041]
[1718982593342,0.17,133.27,133.25,6.0037]
[1718982593932,48.1524,133.32,133.27,6.0027]
[1718982593933,6.0008,133.32,133.27,6.0027]
[1718982594134,21.14215861,133.34,133.29,6.0016]
[1718982594135,12.14285861,133.34,133.29,6.0016]
[1718982594320,12.14275861,133.34,133.29,6.0016]
[1718982594523,27.6078,133.33,133.28,6.0022]
[1718982595039,21.6075,133.33,133.22,30.0249]
[1718982595246,21.6075,133.33,133.27,15.007]
[1718982595427,21.6075,133.33,133.29,6.0018]
[1718982595830,21.6075,133.33,133.24,15.0094]
[1718982596027,6.0008,133.32,133.27,6.0025]
[1718982596432,0.17,133.31,133.28,6.0023]
[1718982596628,51.3406,133.32,133.28,6.0023]
[1718982596829,6.001,133.31,133.24,15.0094]
[1718982597053,45.0,133.3,133.26,6.003]
[1718982597933,51.0015,133.3,133.25,6.0035]
[1718982598125,0.17,133.29,133.25,6.0035]
[1718982598328,6.342,133.29,133.24,6.0041]
[1718982598526,45.0,133.28,133.24,6.0041]
[1718982598873,6.1732,133.27,133.22,6.0049]
[1718982599152,6.1732,133.27,133.18,30.8959919]
[1718982599153,6.0041,133.25,133.2,6.0059]
[1718982599339,51.0044,133.24,133.19,6.0063]
[1718982599536,0.17,133.23,133.19,6.0063]
[1718982599933,0.17,133.23,133.18,0.8628919]
[1718982599934,0.17,133.23,133.2,6.0059]
[1718982600357,6.0052,133.22,133.18,0.8628919]
[1718982600549,21.6333,133.26,133.18,0.8628919]
[1718982600729,45.0,133.25,133.22,6.005]
[1718982601151,45.0,133.25,133.18,0.8628919]
[1718982601342,0.17,133.24,133.18,0.8628919]
[1718982601542,0.17,133.24,133.2,6.0059]
[1718982601849,0.17,133.24,133.18,0.8628919]
[1718982601850,45.0,133.25,133.21,6.0055]
[1718982602032,0.17,133.24,133.21,6.0055]
[1718982602231,0.17,133.24,133.18,0.8628919]
[1718982602232,6.3442,133.24,133.19,6.0062]
[1718982602533,6.3442,133.24,133.18,0.8628919]
[1718982602534,6.0048,133.23,133.18,0.8628919]
[1718982602735,51.1751,133.22,133.18,0.8628919]
[1718982602970,0.17,133.22,133.18,6.8695919]
[1718982603831,6.1751,133.22,133.18,0.8628919]
[1718982604029,6.0056,133.21,133.18,0.8628919]
[1718982604248,12.2384,133.19,133.18,0.8628919]
[1718982604469,73.7111,133.19,133.18,0.8628919]
[1718982604756,74.0511,133.19,133.18,0.8628919]
[1718982606469,94.0511,133.19,133.18,0.8628919]
[1718982608546,15.0181,133.18,133.07,15.0293]
[1718982608753,15.0181,133.18,133.09,6.0106]
[1718982608754,6.0087,133.14,133.09,6.0106]
[1718982608949,6.0084,133.15,133.1,6.0103]
[1718982609162,45.17,133.14,133.1,6.0103]
[1718982609946,51.1787,133.14,133.1,6.0103]
[1718982610151,0.17,133.17,133.09,15.0271]
[1718982610358,0.17,133.17,133.11,6.0099]
[1718982610359,6.0078,133.16,133.11,6.0099]
[1718982610566,0.17,133.17,133.12,6.0095]
[1718982610769,6.008,133.16,133.11,6.0099]
[1718982611138,6.0083,133.15,133.1,6.0102]
[1718982611564,6.0089,133.14,133.09,6.0108]
[1718982611766,6.0088,133.14,133.09,6.0106]
[1718982612365,6.1783,133.15,133.11,6.01]
[1718982612563,63.79435325,133.19,133.1,6.0102]
[1718982612771,6.0085,133.15,133.08,15.0277]